bitfinex-derivatives/quotes_ETHF0:USTF0_20240927
["timestamp","ask_amount","ask_price","bid_price","bid_amount"]
[1727409799128,0.37815,2644.1,2644.0,1.36]
[1727409799328,3.58593,2644.2,2644.0,1.36]
[1727409799528,0.37814,2644.1,2644.0,1.36]
[1727409799935,0.37814,2644.1,2644.0,14.36]
[1727409800133,3.2078,2644.2,2644.0,18.1424]
[1727409800439,0.37808,2644.5,2644.1,6.97117365]
[1727409800628,0.94501,2645.1,2644.3,5.54069748]
[1727409800829,0.37808,2644.6,2644.4,1.76229748]
[1727409801125,0.37805,2644.8,2644.5,13.0]
[1727409801329,1.33447,2645.2,2644.5,13.0]
[1727409801631,0.37802,2645.0,2644.5,16.58588]
[1727409802021,0.37802,2645.0,2644.9,1.36]
[1727409802225,0.3895,2645.2,2644.9,1.36]
[1727409802226,0.37799,2645.2,2644.9,1.36]
[1727409802436,0.37799,2645.2,2645.1,1.36]
[1727409802928,0.37791,2645.7,2645.1,8.3486]
[1727409803128,0.37791,2645.7,2645.6,1.36]
[1727409803328,0.37792,2645.6,2645.5,1.36]
[1727409803632,0.37795,2645.5,2645.4,1.36]
[1727409804128,3.5973,2645.8,2645.0,0.7894]
[1727409804335,0.37799,2645.2,2645.0,0.7894]
[1727409806123,0.37797,2645.3,2645.0,0.7894]
[1727409806328,3.5855,2645.5,2645.0,0.7894]
[1727409806921,0.37798,2645.3,2645.0,0.7894]
[1727409807330,0.37796,2645.4,2645.0,0.7894]
[1727409808129,3.58574,2645.5,2645.0,3.7394]
[1727409809232,3.2078,2645.5,2645.0,3.7394]
[1727409809530,0.37796,2645.4,2645.0,3.7394]
[1727409810228,3.2078,2645.5,2645.0,0.7894]
[1727409810634,0.378,2645.1,2645.0,0.7894]
[1727409811230,0.37799,2645.2,2645.0,0.7894]
[1727409813033,4.55837,2645.5,2644.8,3.2078]
[1727409813238,0.37797,2645.3,2644.8,3.2078]
[1727409813440,4.27379,2645.4,2644.8,3.2078]
[1727409813441,0.378,2645.1,2644.8,3.2078]
[1727409814933,0.3807,2645.2,2644.8,3.2078]
[1727409814934,0.37801,2645.0,2644.8,3.2078]
[1727409815129,0.378,2645.1,2644.8,3.2078]
[1727409815842,0.37798,2645.3,2645.0,2.95]
[1727409816042,0.37797,2645.4,2645.1,0.7512]
[1727409816233,3.5789,2645.5,2645.1,0.7512]
[1727409816234,0.37797,2645.3,2645.1,0.7512]
[1727409816540,0.37796,2645.4,2645.1,0.7512]
[1727409816840,3.5789,2645.5,2645.1,0.7512]
[1727409817134,1.71276,2645.8,2645.1,0.7512]
[1727409817135,3.2958,2646.2,2645.4,2.95]
[1727409817341,4.15246,2646.1,2645.4,2.95]
[1727409817537,0.37793,2645.6,2645.5,0.3947]
[1727409817935,0.94468,2646.0,2645.5,4.1747]
[1727409818136,0.3711,2646.2,2645.6,0.7512]
[1727409818433,0.37788,2645.9,2645.6,0.7512]
[1727409818632,3.5789,2646.2,2645.7,13.0]
[1727409818837,0.3711,2646.2,2645.7,13.0]
[1727409819037,0.37786,2646.1,2645.7,13.0]
[1727409819241,0.3711,2646.2,2645.7,15.95]
[1727409819439,0.37788,2645.9,2645.7,15.95]
[1727409819633,0.3779,2645.8,2645.7,13.0]
[1727409819834,0.37792,2645.6,2645.5,0.3947]
[1727409822149,0.3711,2646.2,2645.5,7.1247]
[1727409822150,0.37792,2645.7,2645.5,7.1247]
[1727409822344,0.37792,2645.7,2645.6,0.4026]
[1727409824546,0.3779,2645.8,2645.6,0.4026]
[1727409824741,0.3779,2645.8,2645.7,0.3815]
[1727409825939,0.37789,2645.9,2645.7,0.3815]
[1727409826247,0.3779,2645.8,2645.7,0.3815]
[1727409828147,0.37792,2645.6,2645.5,0.3947]
[1727409828348,3.78,2645.8,2645.3,13.7844]
[1727409828349,0.37795,2645.4,2645.3,13.7844]
[1727409829648,0.37797,2645.3,2645.2,0.4062]
[1727409830239,0.37797,2645.3,2645.2,13.4062]
[1727409831145,0.37796,2645.4,2645.2,13.4062]
[1727409831742,1.33579,2645.7,2645.2,13.4062]
[1727409832047,0.37796,2645.4,2645.2,13.4062]
[1727409832641,0.7907,2645.7,2645.2,13.4062]
[1727409832841,0.37793,2645.6,2645.2,16.3562]
[1727409833244,0.37793,2645.6,2645.2,16.73418]
[1727409833441,0.37791,2645.7,2645.2,16.73418]
[1727409833642,0.37791,2645.7,2645.3,0.37797]
[1727409834046,0.37791,2645.7,2645.2,16.3562]
[1727409834047,0.37791,2645.7,2645.2,16.73417]
[1727409834244,3.2078,2645.8,2645.2,16.3562]
[1727409834448,3.2078,2645.8,2645.2,16.73417]
[1727409834643,0.37791,2645.7,2645.2,16.73417]
[1727409835044,0.37794,2645.5,2645.2,16.3562]
[1727409835745,3.2078,2645.8,2645.2,16.3562]
[1727409835945,0.37794,2645.6,2645.2,16.3562]
[1727409836141,3.2078,2645.8,2645.2,16.3562]
[1727409836656,3.2078,2645.8,2645.2,13.4062]
[1727409836657,0.37795,2645.5,2645.2,13.4062]
[1727409837848,0.37793,2645.6,2645.2,13.78418]
[1727409838948,3.2078,2645.8,2645.2,13.4062]
[1727409839447,0.37793,2645.6,2645.2,16.73418]
[1727409840048,0.37789,2645.9,2645.5,2.95]
[1727409840255,0.4871,2646.3,2645.6,1.193]
[1727409840256,0.37791,2645.7,2645.6,1.193]
[1727409842952,0.37791,2645.7,2645.6,0.3823]
[1727409843150,0.94468,2646.0,2645.6,0.3823]
[1727409843343,0.37791,2645.7,2645.6,0.3823]
[1727409843749,0.3745,2645.8,2645.3,6.9654]
[1727409844057,0.37792,2645.7,2645.4,0.383]
[1727409844249,0.37792,2645.7,2645.4,0.76095]
[1727409844553,0.3779,2645.8,2645.4,0.76094]
[1727409845143,0.37793,2645.6,2645.4,0.383]
[1727409845548,0.37794,2645.5,2645.4,0.383]
[1727409845850,0.37793,2645.6,2645.4,0.383]
[1727409846252,0.94468,2646.0,2645.4,0.383]
[1727409846253,0.37792,2645.7,2645.4,0.383]
[1727409846555,0.37793,2645.6,2645.4,0.383]
[1727409846855,0.37792,2645.7,2645.4,0.383]
[1727409847854,0.94468,2646.0,2645.4,0.383]
[1727409848355,0.37793,2645.6,2645.4,0.383]
[1727409849854,0.94468,2646.0,2645.4,0.383]
[1727409849855,0.37792,2645.7,2645.4,0.383]
[1727409850052,0.37792,2645.7,2645.5,2.95]
[1727409850656,0.37792,2645.6,2645.5,2.95]
[1727409851054,0.37794,2645.5,2645.4,0.383]
[1727409851354,0.94471,2645.9,2645.4,0.383]
[1727409851562,0.37794,2645.5,2645.4,0.383]
[1727409852162,4.3447,2646.1,2645.4,0.383]
[1727409852354,0.3779,2645.8,2645.5,2.95]
[1727409852660,1.1369,2646.1,2645.5,2.95]
[1727409853258,0.37792,2645.7,2645.5,2.95]
[1727409853455,0.37792,2645.6,2645.5,2.95]
[1727409854155,0.3779,2645.8,2645.5,6.73]
[1727409854354,0.3779,2645.8,2645.5,2.95]
[1727409854561,0.37791,2645.7,2645.5,2.95]
[1727409855066,0.37791,2645.7,2645.5,6.73]
[1727409855562,0.48741,2645.7,2645.5,6.73]
[1727409856262,0.37792,2645.6,2645.5,6.73]
[1727409856462,0.48741,2645.7,2645.5,6.73]
[1727409856659,0.37792,2645.6,2645.5,2.95]
[1727409857058,0.48742,2645.7,2645.5,6.73]
[1727409857258,0.37792,2645.6,2645.5,2.95]
[1727409857751,0.37792,2645.6,2645.5,6.73]
[1727409857957,0.37792,2645.6,2645.5,2.95]
[1727409858161,0.1095,2645.7,2645.5,2.95]
[1727409858952,0.37792,2645.6,2645.5,2.95]
[1727409861459,0.48742,2645.7,2645.5,2.95]
[1727409861762,0.37794,2645.5,2645.4,0.383]
[1727409862262,0.37793,2645.6,2645.4,1.743]
[1727409862562,0.48742,2645.7,2645.4,1.743]
[1727409862751,0.48742,2645.7,2645.5,3.2078]
[1727409862951,0.1095,2645.7,2645.5,3.2078]
[1727409863154,0.48742,2645.7,2645.4,1.743]
[1727409863356,0.37793,2645.6,2645.4,1.743]
[1727409864761,0.37794,2645.5,2645.4,0.383]
[1727409866063,0.37793,2645.6,2645.4,1.743]
[1727409866370,0.37794,2645.5,2645.4,1.743]
[1727409868365,0.37793,2645.6,2645.4,1.743]
[1727409868566,0.37794,2645.5,2645.4,1.743]
[1727409870069,0.3916,2645.9,2645.4,1.743]
[1727409870270,0.3916,2645.9,2645.4,2.12094]
[1727409870562,0.37791,2645.7,2645.4,2.12094]
[1727409870766,0.37791,2645.7,2645.4,1.743]
[1727409871069,1.33631,2645.9,2645.4,0.383]
[1727409871260,0.37794,2645.5,2645.4,0.383]
[1727409872269,0.37794,2645.5,2645.4,1.743]
[1727409877077,0.37794,2645.5,2645.4,2.71539364]
[1727409878375,0.37796,2645.4,2645.2,16.2078]
[1727409878569,0.37795,2645.5,2645.2,18.32737]
[1727409879174,0.37795,2645.5,2645.4,1.36]
[1727409879869,0.3916,2645.9,2645.4,1.73795]
[1727409880065,0.37792,2645.6,2645.5,3.6089]
[1727409881578,0.37792,2645.7,2645.5,3.6089]
[1727409881766,0.37792,2645.6,2645.5,3.6089]
[1727409881969,0.37792,2645.6,2645.5,3.2078]
[1727409882368,0.94485,2645.5,2644.9,3.2078]
[1727409882565,2.30493,2645.3,2644.8,0.4061]
[1727409882773,3.2078,2645.2,2644.8,0.4061]
[1727409882973,0.37802,2645.0,2644.8,14.7661]
[1727409883172,3.2078,2645.2,2644.8,14.7661]
[1727409883173,0.378,2645.1,2644.8,14.7661]
[1727409883371,0.37802,2645.0,2644.8,14.7661]
[1727409883970,3.2078,2645.2,2644.8,14.7661]
[1727409884473,0.37801,2645.0,2644.8,14.7661]
[1727409884669,3.2078,2645.2,2644.9,1.36]
[1727409884868,0.37799,2645.2,2645.0,3.2078]
[1727409885586,0.37798,2645.2,2645.0,3.2078]
[1727409886175,0.3876,2645.4,2645.0,3.2078]
[1727409886382,0.37798,2645.2,2645.0,3.2078]
[1727409887773,0.3876,2645.4,2645.0,3.2078]
[1727409887974,0.37799,2645.2,2645.0,3.2078]
[1727409888384,0.37799,2645.2,2645.1,13.0]
[1727409888582,0.37798,2645.3,2645.1,13.0]
[1727409888782,0.37798,2645.3,2645.1,13.3989]
[1727409888984,0.37798,2645.3,2645.2,0.3851]
[1727409889482,0.37798,2645.3,2645.2,0.7778]
[1727409892075,3.3173,2645.7,2645.2,0.7778]
[1727409892274,3.3173,2645.7,2645.2,3.9856]
[1727409892275,0.923,2645.7,2645.2,3.9856]
[1727409892582,0.37796,2645.4,2645.2,3.9856]
[1727409893079,0.37795,2645.5,2645.2,3.9856]
[1727409893378,0.37795,2645.5,2645.2,4.95799364]
[1727409896985,0.37793,2645.6,2645.3,0.97239364]
[1727409897185,0.7675,2645.9,2645.3,0.97239364]
[1727409897577,0.37793,2645.6,2645.3,0.97239364]
[1727409898884,0.37792,2645.7,2645.3,0.97239364]
[1727409899091,0.37792,2645.7,2645.4,0.97239364]
[1727409899285,6.5475,2646.0,2645.6,2.95]
[1727409899286,3.2078,2646.0,2645.6,2.95]
[1727409899485,3.2078,2646.0,2645.7,0.3786]
[1727409899486,0.3779,2645.8,2645.7,0.3786]
[1727409899693,0.3779,2645.8,2645.7,0.7709]
[1727409902993,0.3779,2645.8,2645.7,0.3923]
[1727409903388,3.2078,2646.0,2645.7,0.3923]
[1727409903595,3.58567,2646.0,2645.7,0.3923]
[1727409903896,0.37787,2646.0,2645.7,0.3923]
[1727409904787,0.37788,2645.9,2645.7,0.3923]
[1727409905195,0.37787,2646.0,2645.7,0.3923]
[1727409907791,0.7557,2646.2,2645.7,0.3923]
[1727409907987,0.37788,2646.0,2645.7,0.3923]
[1727409909302,0.1095,2645.8,2645.7,1.36469364]
[1727409909485,0.1095,2645.8,2645.7,8.27561184]
[1727409909686,0.1095,2645.8,2645.7,13.5244832]
[1727409912092,0.1095,2645.8,2645.7,13.52456431]
[1727409912304,0.1095,2645.8,2645.7,11.93456431]
[1727409912603,0.1095,2645.8,2645.7,12.31247431]
[1727409913700,4.5678,2646.6,2645.7,17.93456431]
[1727409913701,0.37783,2646.3,2645.7,17.93456431]
[1727409913889,0.37781,2646.5,2646.2,1.36]
[1727409914196,0.37781,2646.5,2646.4,1.36]
[1727409914197,0.3778,2646.5,2646.4,1.36]
[1727409914391,0.3778,2646.5,2646.4,14.36]
[1727409914598,1.30018,2647.4,2646.4,14.36]
[1727409914900,0.4063,2648.5,2647.3,3.2078]
[1727409915099,1.73764,2647.7,2647.3,3.2078]
[1727409915395,1.73764,2647.7,2646.6,2.42374328]
[1727409915396,0.4063,2647.6,2646.9,5.35503]
[1727409915603,0.4063,2647.6,2647.1,1.36]
[1727409915901,0.4063,2647.6,2647.2,3.2078]
[1727409916195,0.3924,2647.9,2647.5,3.2078]
[1727409916399,0.3784,2647.9,2647.5,3.2078]
[1727409916789,0.3784,2647.9,2647.2,6.1578]
[1727409917100,0.3784,2647.9,2647.5,3.2078]
[1727409917397,0.37751,2648.6,2647.8,3.2078]
[1727409917603,0.3784,2648.2,2647.8,3.2078]
[1727409918199,0.3784,2648.2,2647.5,0.3779]
[1727409918400,0.3784,2648.2,2647.7,3.2078]
[1727409918793,0.3784,2648.2,2647.5,3.5857]
[1727409919000,0.4055,2648.1,2647.5,3.5857]
[1727409919199,0.4055,2648.1,2647.6,3.2078]
[1727409920003,1.18468,2648.1,2647.6,3.2078]
[1727409920197,3.7571,2648.1,2647.6,3.2078]
[1727409920499,4.13467,2648.1,2647.6,3.2078]
[1727409920695,0.37759,2648.0,2647.6,3.2078]
[1727409920896,3.7571,2648.1,2647.3,3.2078]
[1727409921197,0.37759,2648.0,2647.6,3.2078]
[1727409921905,0.8071,2648.1,2647.6,3.2078]
[1727409922097,1.18467,2648.1,2647.6,3.2078]
[1727409922297,0.4055,2648.1,2647.6,3.2078]
[1727409922497,0.4055,2648.1,2647.9,3.2078]
[1727409923601,4.1823,2648.1,2647.9,3.2078]
[1727409923904,3.7768,2648.0,2647.9,3.2078]
[1727409924605,0.4055,2648.1,2647.9,3.2078]
[1727409926007,0.4055,2648.1,2647.2,0.8468]
[1727409926008,0.37759,2648.0,2647.6,3.2078]
[1727409926402,0.37759,2648.0,2647.3,6.5656]
[1727409926704,0.37759,2648.0,2647.6,3.2078]
[1727409926900,0.4055,2648.1,2647.3,6.5656]
[1727409927096,0.37758,2648.0,2647.6,3.2078]
[1727409927695,0.4055,2648.1,2647.6,3.2078]
[1727409927907,0.37758,2648.0,2647.7,0.3915]
[1727409928108,0.3776,2647.9,2647.7,0.7807]
[1727409928505,0.37759,2648.0,2647.7,0.7807]
[1727409928706,0.3776,2647.9,2647.7,0.7807]
[1727409928902,0.4055,2648.1,2647.3,6.5656]
[1727409929103,0.37762,2647.8,2647.4,0.7834]
[1727409929408,0.3915,2647.7,2647.4,0.7834]
[1727409929905,0.3915,2647.7,2647.6,3.2078]
[1727409930097,0.4055,2648.1,2647.6,3.2078]
[1727409930302,0.76909,2648.0,2647.6,3.2078]
[1727409932600,0.3776,2647.9,2647.6,3.2078]
[1727409933312,4.15153,2648.7,2647.8,2.95]
[1727409933507,0.37756,2648.2,2648.1,3.2078]
[1727409934115,0.37756,2648.2,2648.0,0.3928]
[1727409934307,0.76403,2648.4,2648.1,6.1578]
[1727409934507,0.3865,2648.4,2648.1,6.1578]
[1727409934807,0.37755,2648.2,2648.1,3.2078]
[1727409935115,0.37755,2648.2,2648.1,12.6078]
[1727409936197,0.37755,2648.3,2648.1,3.2078]
[1727409936397,0.37755,2648.2,2647.9,0.4088]
[1727409936604,0.37757,2648.1,2648.0,3.6119]
[1727409936805,0.3865,2648.4,2648.0,13.0119]
[1727409937200,0.3865,2648.4,2648.0,15.9619]
[1727409937399,0.37756,2648.2,2648.0,15.9619]
[1727409938007,0.37757,2648.1,2648.0,15.9619]
[1727409938407,0.37757,2648.1,2648.0,6.5619]
[1727409938810,0.37757,2648.1,2648.0,13.0119]
[1727409939810,0.37757,2648.1,2648.0,3.6119]
[1727409940001,0.3865,2648.4,2648.0,6.5619]
[1727409940313,5.02169,2648.8,2648.3,6.1578]
[1727409940314,4.078,2648.8,2648.3,6.1578]
[1727409940507,0.37751,2648.5,2648.4,0.7854]
[1727409940711,0.37751,2648.5,2648.4,0.405]
[1727409941014,0.4057,2648.9,2648.4,4.55852]
[1727409941311,4.078,2649.3,2648.7,2.95]
[1727409941608,0.37745,2649.0,2648.9,3.2078]
[1727409941913,0.37745,2648.9,2648.8,0.3804]
[1727409943210,0.37747,2648.8,2648.7,2.95]
[1727409944607,0.37748,2648.7,2648.6,3.6127]
[1727409945605,0.37747,2648.8,2648.6,3.6127]
[1727409945805,0.37746,2648.9,2648.7,6.1578]
[1727409946717,0.37747,2648.8,2648.7,6.1578]
[1727409947312,0.37745,2649.0,2648.7,9.933]
[1727409947611,0.4057,2649.2,2648.7,6.1578]
[1727409947815,1.34925,2649.2,2648.6,0.4049]
[1727409948006,0.94357,2649.1,2648.6,0.4049]
[1727409948305,0.37748,2648.8,2648.7,3.2078]
[1727409948505,0.37748,2648.7,2648.6,0.4049]
[1727409949112,0.37748,2648.7,2648.5,0.4051]
[1727409949113,0.3775,2648.6,2648.5,0.4051]
[1727409949317,1.32129,2648.5,2648.4,3.2078]
[1727409949514,5.09729,2648.5,2648.4,3.2078]
[1727409951119,0.37751,2648.5,2648.4,3.2078]
[1727409951816,1.1011,2648.6,2648.4,6.1578]
[1727409952011,0.37751,2648.5,2648.4,6.1578]
[1727409952210,0.37751,2648.5,2648.4,3.2078]
[1727409955212,4.15351,2648.5,2648.4,3.2078]
[1727409955517,4.55301,2648.5,2648.4,3.2078]
[1727409955911,0.37751,2648.5,2648.4,3.2078]
[1727409956812,4.15351,2648.5,2648.4,3.2078]
[1727409957613,0.37751,2648.5,2648.4,3.2078]
[1727409959219,0.37751,2648.5,2648.4,6.1578]
[1727409960120,1.1011,2648.6,2648.4,6.1578]
[1727409960318,0.7,2648.6,2648.4,6.1578]
[1727409960517,1.0775,2648.6,2648.4,6.1578]
[1727409960730,0.7,2648.6,2648.4,6.1578]
[1727409963118,1.0775,2648.6,2648.4,6.1578]
[1727409963421,0.7,2648.6,2648.4,6.1578]
[1727409965018,1.07751,2648.6,2648.4,6.1578]
[1727409965220,0.37751,2648.5,2648.4,6.1578]
[1727409965525,0.7,2648.6,2648.4,6.1578]
[1727409965722,1.0775,2648.6,2648.4,6.1578]
[1727409967823,0.7,2648.6,2648.4,6.1578]
[1727409968916,1.0775,2648.6,2648.4,6.1578]
[1727409970326,0.7,2648.6,2648.4,6.1578]
[1727409971129,0.37751,2648.5,2648.4,6.1578]
[1727409971324,1.0775,2648.6,2648.4,6.1578]
[1727409971625,0.37751,2648.5,2648.4,6.1578]
[1727409971828,1.0775,2648.6,2648.4,6.1578]
[1727409972023,0.37751,2648.5,2648.4,6.1578]
[1727409973922,0.7,2648.6,2648.4,6.1578]
[1727409974125,0.7,2648.6,2648.4,6.53532]
[1727409974323,0.7,2648.6,2648.5,0.3732]
[1727409976724,0.13343526,2648.6,2648.5,0.3732]
[1727409977125,0.75306,2648.9,2648.5,1.34260377]
[1727409977328,0.75306,2648.9,2648.4,7.61190566]
[1727409977329,0.37747,2648.8,2648.4,3.91940377]
[1727409977530,0.3988,2648.8,2648.7,3.2078]
[1727409977830,0.3988,2648.8,2648.7,6.1578]
[1727409979336,0.3988,2648.8,2648.4,5.63130943]
[1727409979533,0.37755,2648.2,2648.1,0.96940377]
[1727409979733,0.94378,2648.5,2647.9,0.96940377]
[1727409979734,0.37758,2648.0,2647.9,0.96940377]
[1727409979930,0.37759,2648.0,2647.7,1.75670377]
[1727409980136,0.396,2648.1,2647.7,0.7873]
[1727409980331,0.37759,2648.0,2647.7,0.7873]
[1727409980530,0.396,2648.1,2647.7,0.7873]
[1727409980731,0.3776,2648.0,2647.7,0.7873]
[1727409981332,0.396,2648.1,2647.7,0.7873]
[1727409981637,0.37759,2648.0,2647.7,0.7873]
[1727409982934,0.3776,2647.9,2647.7,0.7873]
[1727409983726,0.37762,2647.8,2647.6,9.4]
[1727409983930,0.37761,2647.8,2647.6,9.4]
[1727409984332,0.3776,2647.9,2647.6,9.4]
[1727409984636,0.396,2648.1,2647.8,6.1578]
[1727409984839,0.133,2648.3,2648.0,2.95]
[1727409985136,0.133,2648.3,2648.2,6.1578]
[1727409986138,0.133,2648.3,2648.2,9.9338]
[1727409988643,0.133,2648.3,2648.2,10.90320377]
[1727409988839,0.37749,2648.7,2648.2,11.63293076]
[1727409989135,1.16608,2648.8,2648.6,3.2078]
[1727409989340,0.1095,2648.6,2648.5,2.95]
[1727409989746,0.1095,2648.6,2648.5,6.726]
[1727409989941,0.1095,2648.6,2648.5,7.1173]
[1727409991643,0.1095,2648.6,2648.5,8.08606941]
[1727409991941,0.1095,2648.6,2648.5,7.1173]
[1727409997340,0.1095,2648.6,2648.5,2.95]
[1727409997546,0.487,2648.6,2648.5,2.95]
[1727409997850,0.1095,2648.6,2648.5,2.95]
[1727409998447,0.1095,2648.6,2648.5,6.726]
[1727409998648,0.1095,2648.6,2648.5,7.10351]
[1727409999149,0.1095,2648.6,2648.5,6.726]
[1727410000547,0.1095,2648.6,2648.5,2.95]
[1727410001644,0.76727,2648.8,2648.5,2.95]
[1727410002153,0.76727,2648.8,2648.6,3.2078]
[1727410003949,0.3898,2648.8,2648.6,3.2078]
[1727410004151,0.76727,2648.8,2648.6,3.2078]
[1727410004855,0.3898,2648.8,2648.6,3.2078]
[1727410005249,0.76988,2648.7,2648.6,3.2078]
[1727410006755,0.76988,2648.7,2648.6,2.5905]
[1727410006946,0.37752,2648.4,2648.0,3.32758]
[1727410007144,10.5633,2648.7,2648.1,3.2078]
[1727410007145,0.7881,2648.7,2648.1,3.2078]
[1727410007352,0.7881,2648.7,2648.3,2.95]
[1727410007353,0.37752,2648.4,2648.3,2.95]
[1727410007953,0.37752,2648.4,2648.3,3.3517]
[1727410008550,0.3775,2648.6,2648.3,3.3517]
[1727410008751,0.3775,2648.6,2648.4,4.0207]
[1727410008958,0.3898,2648.8,2648.5,2.95]
[1727410009153,0.76728,2648.8,2648.7,2.95]
[1727410009347,0.37742,2649.2,2648.8,0.37747]
[1727410009555,0.3774,2649.3,2649.1,2.95]
[1727410010059,3.2078,2649.6,2649.1,2.95]
[1727410010060,0.37741,2649.2,2649.1,2.95]
[1727410011861,0.3909,2649.5,2649.1,2.95]
[1727410012064,0.37741,2649.2,2649.1,2.95]
[1727410015068,0.37741,2649.2,2649.1,6.7244]
[1727410015262,0.3909,2649.5,2649.1,6.7244]
[1727410015458,0.37737,2649.5,2649.4,2.95]
[1727410015968,0.3774,2649.3,2649.2,12.7552]
[1727410016661,0.37739,2649.4,2649.2,12.7552]
[1727410016967,0.3774,2649.3,2649.2,12.7552]
[1727410017363,3.2078,2649.6,2649.2,12.7552]
[1727410017364,0.37739,2649.4,2649.2,12.7552]
[1727410017759,0.3774,2649.3,2649.2,12.7552]
[1727410018161,0.37739,2649.4,2649.2,12.7552]
[1727410018365,0.3774,2649.3,2649.2,12.7552]
[1727410018564,3.2078,2649.6,2649.2,12.7552]
[1727410019666,0.37739,2649.4,2649.2,12.7552]
[1727410020166,3.2078,2649.6,2649.2,12.7552]
[1727410020167,0.3774,2649.3,2649.2,12.7552]
[1727410020372,0.37739,2649.4,2649.2,12.7552]
[1727410020570,0.3774,2649.3,2649.2,12.7552]
[1727410020969,1.32536,2649.7,2649.2,12.7552]
[1727410020970,0.37739,2649.4,2649.2,12.7552]
[1727410021271,1.32536,2649.7,2649.2,12.7552]
[1727410021272,0.382,2649.7,2649.3,2.95]
[1727410021667,0.37735,2649.7,2649.6,2.95]
[1727410022273,0.37734,2649.8,2649.6,2.95]
[1727410022468,0.37734,2649.8,2649.7,0.3794]
[1727410023770,0.37732,2649.9,2649.7,0.3794]
[1727410024579,0.37733,2649.8,2649.7,0.3794]
[1727410025074,0.37734,2649.7,2649.6,2.95]
[1727410025275,0.37738,2649.4,2649.3,0.3794]
[1727410031876,0.3774,2649.3,2649.2,15.9571]
[1727410033279,0.3774,2649.3,2649.2,12.6078]
[1727410033575,0.37745,2648.9,2648.8,3.2078]
[1727410033780,0.37744,2649.0,2648.8,3.2078]
[1727410034089,0.7651,2649.2,2648.8,3.2078]
[1727410034090,0.3938,2649.2,2648.9,12.35]
[1727410034381,0.77122,2649.2,2648.9,12.35]
[1727410034584,0.37741,2649.3,2649.1,6.1578]
[1727410034882,0.37737,2649.5,2649.2,1.54831]
[1727410035073,0.37737,2649.5,2649.4,2.95]
[1727410036081,0.37736,2649.6,2649.4,2.95]
[1727410036377,0.37735,2649.6,2649.5,6.1578]
[1727410036578,0.37735,2649.7,2649.5,2.95]
[1727410036876,0.37735,2649.7,2649.6,0.4021]
[1727410038985,0.37731,2649.9,2649.6,0.4021]
[1727410039184,0.37733,2649.8,2649.7,0.7771]
[1727410042277,0.37734,2649.7,2649.6,0.4021]
[1727410044281,0.37735,2649.6,2649.5,2.95]
[1727410048283,0.37735,2649.6,2649.5,6.7244]
[1727410048484,1.0092,2650.0,2649.5,6.7244]
[1727410048789,1.0092,2650.0,2649.5,2.95]
[1727410048990,0.37735,2649.7,2649.5,2.95]
[1727410050381,1.0092,2650.0,2649.5,3.32737]
[1727410050580,0.37731,2649.9,2649.8,2.95]
[1727410050794,0.37731,2649.9,2649.8,3.3252]
[1727410051182,0.78371,2649.9,2649.8,3.3252]
[1727410052391,0.37731,2649.9,2649.8,3.3252]
[1727410053486,0.2,2650.0,2649.8,22.39800254]
[1727410053687,3.2078,2650.7,2649.9,3.7736]
[1727410053890,0.37721,2650.6,2650.4,2.95]
[1727410054186,0.37721,2650.6,2650.5,9.4]
[1727410054384,3.2078,2651.0,2650.5,9.4]
[1727410054582,0.37719,2650.8,2650.5,9.4]
[1727410054892,1.16258,2650.9,2650.7,2.95]
[1727410055081,0.37725,2650.4,2650.1,0.96876941]
[1727410055283,0.37725,2650.4,2650.0,4.74990566]
[1727410055284,0.37725,2650.4,2650.3,3.2078]
[1727410055492,0.37724,2650.5,2650.3,9.4]
[1727410055687,0.37724,2650.4,2650.3,9.4]
[1727410056190,4.15004,2650.4,2650.2,2.95]
[1727410056389,0.37724,2650.4,2650.2,2.95]
[1727410056593,0.75285,2650.3,2650.2,12.35]
[1727410057989,0.75285,2650.3,2650.2,2.95]
[1727410058299,0.37728,2650.1,2650.0,6.5352]
[1727410058498,0.37728,2650.1,2650.0,15.9352]
[1727410059491,0.37728,2650.1,2650.0,6.1578]
[1727410064290,0.37733,2649.8,2649.7,3.3465]
[1727410067703,3.2078,2650.1,2649.7,3.7193]
[1727410067892,3.2078,2650.9,2650.0,2.95]
[1727410068093,0.37717,2650.9,2650.8,2.95]
[1727410068300,3.2078,2651.2,2650.8,2.95]
[1727410068597,3.2078,2651.2,2651.1,2.95]
[1727410068598,3.58493,2651.2,2651.1,2.95]
[1727410069404,0.37713,2651.2,2651.1,2.95]
[1727410070800,3.5782,2651.8,2651.1,2.95]
[1727410070997,3.2078,2651.5,2650.9,9.4]
[1727410071201,0.37715,2651.0,2650.9,12.35]
[1727410071998,0.37715,2651.0,2650.9,9.4]
[1727410072193,0.37718,2650.8,2650.7,2.95]
[1727410072691,0.37718,2650.8,2650.7,12.35]
[1727410076502,0.76168,2650.8,2650.7,12.35]
[1727410078707,4.1573,2650.8,2650.5,2.95]
[1727410078906,0.37721,2650.6,2650.5,2.95]
[1727410079405,4.15001,2650.6,2650.5,12.35]
[1727410080307,0.37721,2650.6,2650.5,12.35]